bitfinex/quotes_ETHUSD_20250414
["timestamp","ask_amount","ask_price","bid_price","bid_amount"]
[1744624221034,0.7822,1634.4,1634.3,4.89501]
[1744624221327,0.7822,1634.4,1634.3,4.89506]
[1744624226530,0.7822,1634.4,1634.2,4.89525]
[1744624226900,0.7822,1634.4,1634.2,9.79052]
[1744624227106,0.7822,1634.4,1634.2,4.89525]
[1744624228037,0.7822,1634.4,1634.2,9.7905]
[1744624228234,0.7822,1634.4,1634.3,4.89506]
[1744624230843,0.7822,1634.4,1634.2,4.89525]
[1744624231014,0.7822,1634.4,1634.2,9.79052]
[1744624231437,0.27443748,1634.3,1634.2,9.79052]
[1744624232344,0.27443748,1634.3,1633.9,5.99730386]
[1744624232512,0.27443748,1634.3,1634.1,4.89551]
[1744624233416,0.7735,1634.2,1634.0,4.89591]
[1744624233612,5.17248119,1634.1,1633.8,6.155]
[1744624233950,0.7735,1634.0,1633.8,4.89645]
[1744624234244,0.7735,1634.0,1633.9,4.89626]
[1744624234415,0.778,1634.1,1633.9,9.79252]
[1744624234621,0.778,1634.1,1634.0,4.89596]
[1744624234820,0.778,1634.1,1633.9,9.79243]
[1744624235023,0.778,1634.1,1633.9,9.79234]
[1744624236045,0.778,1634.1,1633.9,4.89617]
[1744624236247,0.778,1634.1,1634.0,4.89596]
[1744624237328,0.778,1634.1,1633.9,4.89617]
[1744624237539,0.778,1634.1,1633.9,4.89614]
[1744624237855,0.27433001,1634.0,1633.8,9.79308]
[1744624238021,0.27433001,1634.0,1633.8,9.793]
[1744624238223,0.27433001,1634.0,1633.8,10.99538365]
[1744624239322,0.27433001,1634.0,1633.8,6.09884365]
[1744624239524,0.27433001,1634.0,1633.8,9.79293]
[1744624241273,0.27433001,1634.0,1633.8,9.79292]
[1744624242473,0.27433001,1634.0,1633.8,4.89646]
[1744624242642,5.17031001,1634.0,1633.7,7.39963548]
[1744624242835,0.7657,1633.9,1633.7,2.50279548]
[1744624243035,5.16743289,1633.8,1633.7,2.50279548]
[1744624243260,5.93313289,1633.8,1633.7,2.50279548]
[1744624243709,0.27087289,1633.8,1633.7,2.50279548]
[1744624243847,0.7599,1634.3,1634.1,4.89553]
[1744624244050,0.24081993,1634.2,1634.1,4.89553]
[1744624244883,0.24081993,1634.2,1634.1,4.89566]
[1744624245852,0.24081993,1634.2,1634.0,4.89581]
[1744624248662,0.24081993,1634.2,1634.0,9.79165]
[1744624248863,0.24081993,1634.2,1634.1,4.89566]
[1744624252196,0.24081993,1634.2,1634.1,5.874807]
[1744624252485,9.58e-06,1634.5,1634.3,4.89495]
[1744624252795,0.22409037,1634.4,1634.3,9.7899]
[1744624253445,0.22409037,1634.4,1634.3,4.89495]
[1744624253651,1.01259037,1634.4,1634.2,9.79055]
[1744624253842,1.01259037,1634.4,1634.2,9.7905]
[1744624254042,1.01259037,1634.4,1634.2,4.89524]
[1744624254249,1.01259037,1634.4,1634.3,4.89506]
[1744624254566,5.90748037,1634.4,1634.0,6.154]
[1744624254761,5.48594804,1634.3,1634.0,15.94578]
[1744624254964,5.48594804,1634.3,1634.0,9.79178]
[1744624255144,0.22371638,1634.2,1634.0,9.79168]
[1744624255837,0.22371638,1634.2,1634.0,4.89583]
[1744624256939,0.7501,1634.1,1634.0,4.89583]
[1744624257151,0.97509594,1634.1,1633.9,4.8962]
[1744624257374,6.45790653,1634.1,1633.8,4.89648]
[1744624257672,5.66898,1634.0,1633.7,12.29637548]
[1744624257880,0.22367667,1633.9,1633.7,12.29637548]
[1744624258480,0.22367667,1633.9,1633.7,7.39954548]
[1744624259969,0.7575,1633.8,1633.7,2.50279548]
[1744624260357,6.95374834,1633.8,1633.7,2.50279548]
[1744624261072,2.05718834,1633.8,1633.7,2.50279548]
[1744624261259,0.97978367,1633.8,1633.7,2.50279548]
[1744624262560,0.22228367,1633.8,1633.7,2.50279548]
[1744624262760,0.22228367,1633.8,1633.7,7.39964548]
[1744624262955,0.8037,1634.2,1634.1,4.89566]
[1744624263168,0.8037,1634.3,1634.2,4.89536]
[1744624263476,0.8037,1634.3,1634.1,9.79132]
[1744624263882,3.8037,1634.3,1634.1,4.89566]
[1744624264381,8.69883,1634.3,1633.9,4.89615]
[1744624264561,0.8037,1634.3,1634.0,4.89573]
[1744624264760,5.69882,1634.3,1634.0,4.89573]
[1744624264956,6.92196293,1634.4,1634.0,0.7756]
[1744624265157,6.92196293,1634.4,1634.2,4.89516]
[1744624265378,6.07451125,1634.4,1634.2,4.89516]
[1744624265555,3.07451125,1634.4,1634.2,4.89516]
[1744624265954,10.96928125,1634.4,1634.1,4.89566]
[1744624266954,10.96928125,1634.4,1634.1,9.79119]
[1744624267305,3.7884,1634.4,1634.2,4.89519]
[1744624267455,3.0,1634.4,1634.3,4.89506]
[1744624267984,3.15582462,1634.4,1634.3,4.89506]
[1744624270691,3.15582462,1634.4,1634.2,4.89519]
[1744624275780,3.15582462,1634.4,1634.2,9.79044]
[1744624276495,3.15582462,1634.4,1634.3,4.89506]
[1744624277991,0.15582462,1634.4,1634.3,6.665985]
[1744624278794,0.15582462,1634.4,1634.3,6.7206897]
[1744624279175,0.15582462,1634.4,1634.3,6.65950992]
[1744624280194,0.15582462,1634.4,1634.3,6.72068974]
[1744624280366,0.15582462,1634.4,1634.3,6.72068342]
[1744624280562,9.58e-06,1634.5,1634.4,5.65646]
[1744624280767,9.58e-06,1634.5,1634.4,7.12834064]
[1744624281385,0.12360408,1634.5,1634.4,7.12834064]
[1744624281588,9.58e-06,1634.5,1634.4,7.12834064]
[1744624281798,0.12360408,1634.5,1634.4,7.12834064]
[1744624284699,0.12360408,1634.5,1634.3,9.78353492]
[1744624284873,0.12360408,1634.5,1634.4,4.89476]
[1744624285074,0.12360408,1634.5,1634.0,6.16]
[1744624285272,0.7662,1634.4,1634.1,9.7912]
[1744624285504,0.12289152,1634.3,1634.1,9.7912]
[1744624285705,0.12289152,1634.3,1634.1,4.89557]
[1744624285891,0.12289152,1634.3,1634.1,9.79111]
[1744624286074,0.12289152,1634.3,1634.1,4.89554]
[1744624286075,0.70127767,1634.3,1634.1,4.89554]
[1744624286276,0.12289152,1634.3,1634.2,4.89536]
[1744624286974,9.58e-06,1634.5,1634.4,4.89476]
[1744624288680,9.58e-06,1634.5,1634.3,4.89503]
[1744624289293,9.58e-06,1634.5,1634.3,4.89497]
[1744624289500,9.58e-06,1634.5,1634.4,4.89476]
[1744624289695,8.45625787,1634.5,1634.2,4.89526]
[1744624290009,0.8178,1634.4,1634.2,4.89526]
[1744624290306,0.8178,1634.4,1634.2,9.79049]
[1744624290616,0.8178,1634.4,1634.2,9.7905]
[1744624290904,9.58e-06,1634.5,1634.3,4.89506]
[1744624291105,9.58e-06,1634.5,1634.4,4.89476]
[1744624292079,9.58e-06,1634.5,1634.3,9.78998]
[1744624292280,9.58e-06,1634.5,1634.3,4.89492]
[1744624292476,0.79180958,1634.5,1634.2,10.62136]
[1744624292702,1.66041054,1634.5,1634.2,10.62136]
[1744624293714,0.79180958,1634.5,1634.3,4.89504]
[1744624293895,9.58e-06,1634.5,1634.4,4.89476]
[1744624295195,9.58e-06,1634.5,1634.4,5.70246]
[1744624299388,9.58e-06,1634.5,1634.4,11.84746]
[1744624299819,9.58e-06,1634.5,1634.4,11.90862515]
[1744624300025,9.58e-06,1634.5,1634.4,14.94183196]
[1744624300319,9.58e-06,1634.5,1634.4,14.88066681]
[1744624304795,9.58e-06,1634.5,1634.4,17.88066681]
[1744624304989,9.58e-06,1634.5,1634.4,27.17422974]
[1744624305287,0.8458,1635.4,1635.2,4.89208]
[1744624305493,0.12274334,1635.3,1635.2,4.89208]
[1744624305718,0.8458,1635.4,1635.2,4.89208]
[1744624305924,0.8458,1635.4,1635.3,4.89206]
[1744624306296,0.05,1635.4,1635.3,5.93162393]
[1744624306598,0.05,1635.4,1635.3,5.870474]
[1744624308197,0.05,1635.4,1635.3,6.73341685]
[1744624308831,0.05,1635.4,1635.3,6.672274]
[1744624309823,0.05,1635.4,1635.3,5.870474]
[1744624310792,0.05,1635.4,1635.3,4.89206]
[1744624312798,0.05,1635.4,1635.3,4.95320294]
[1744624313315,0.18813821,1635.4,1635.3,4.89206]
[1744624313745,0.18813821,1635.4,1635.3,5.68696]
[1744624315354,0.18813821,1635.4,1635.3,11.82896]
[1744624315511,0.18813821,1635.4,1635.3,13.990286]
[1744624316743,0.18813821,1635.4,1635.3,17.12384893]
[1744624316913,0.05,1635.4,1635.3,17.12384893]
[1744624317244,0.18976287,1635.4,1635.3,17.12384893]
[1744624317420,0.05,1635.4,1635.3,17.12384893]
[1744624317621,0.18976287,1635.4,1635.3,17.12384893]
[1744624317811,0.05,1635.4,1635.3,17.12384893]
[1744624318144,0.05,1635.4,1635.3,17.67384893]
[1744624318375,0.05,1635.4,1635.3,20.67384893]
[1744624320871,0.80414721,1636.1,1635.5,0.7711]
[1744624321075,0.01724721,1636.1,1636.0,4.88997]
[1744624321270,0.01724721,1636.1,1636.0,8.02353293]
[1744624321433,0.01724721,1636.1,1636.0,12.38273293]
[1744624321766,0.4540932,1636.4,1636.3,5.69827]
[1744624321968,0.4540932,1636.4,1636.3,14.96883293]
[1744624322156,0.4540932,1636.4,1636.3,13.01187729]
[1744624322357,1.2099932,1636.4,1636.3,4.88907]
[1744624322737,1.2099932,1636.4,1636.2,4.88924]
[1744624322937,0.4540932,1636.4,1636.3,4.88907]
[1744624324337,0.3929132,1636.4,1636.3,4.88907]
[1744624324537,0.3929132,1636.4,1636.3,5.866901]
[1744624326844,0.3929132,1636.4,1636.3,5.92800575]
[1744624327042,0.3929132,1636.4,1636.3,5.866901]
[1744624327240,0.3929132,1636.4,1636.3,5.92800336]
[1744624327469,0.3929132,1636.4,1636.3,9.00046393]
[1744624327871,0.3929132,1636.4,1636.3,12.78126393]
[1744624328375,0.3929132,1636.4,1636.3,9.647701]
[1744624328573,0.3929132,1636.4,1636.3,6.647701]
[1744624328973,0.3929132,1636.4,1636.3,6.70879864]
[1744624329175,1.3779,1637.2,1636.3,10.19892864]
[1744624329341,4.88681,1637.1,1636.7,4.88775]
[1744624329545,0.8279,1637.0,1636.7,4.88775]
[1744624330146,5.71508,1637.0,1636.6,4.88809]
[1744624330381,5.71508,1637.0,1636.6,4.88806]
[1744624330744,6.775221,1637.0,1636.7,4.88784]
[1744624331348,6.775221,1637.0,1636.7,4.88777]
[1744624331763,6.775211,1637.0,1636.7,4.88777]
[1744624331967,5.66719,1636.9,1636.5,11.02345]
[1744624332280,0.7797,1636.9,1636.5,6.19609682]
[1744624332479,0.7797,1636.9,1636.7,4.88772]
[1744624334968,0.7797,1636.9,1636.7,9.77552]
[1744624335162,3.8241,1637.1,1636.8,9.77516]
[1744624335365,8.71079,1637.1,1636.8,4.88758]
[1744624335557,13.59761,1637.1,1636.8,4.88758]
[1744624336161,3.96074693,1637.1,1636.8,4.88748]
[1744624336579,3.96074693,1637.1,1636.8,9.77497]
[1744624336749,0.96074693,1637.1,1636.8,9.77497]
[1744624336954,5.84745693,1637.1,1636.8,4.88748]
[1744624337179,5.84745693,1637.1,1636.8,9.77495]
[1744624337485,0.96074693,1637.1,1636.9,4.88725]
[1744624337795,0.31876053,1637.0,1636.8,9.77494]
[1744624338084,0.12232919,1636.9,1636.8,9.77494]
[1744624339756,0.12232919,1636.9,1636.7,4.88785]
[1744624339961,0.7705,1636.8,1636.7,4.88785]
[1744624340179,0.89240194,1636.8,1636.7,4.88785]
[1744624340387,0.89240194,1636.8,1636.6,9.77628]
[1744624340887,0.89240194,1636.8,1636.6,4.88809]
[1744624341055,0.89240194,1636.8,1636.6,9.77618]
[1744624341457,4.88789,1636.7,1636.4,4.88863]
[1744624341870,0.12094449,1636.6,1636.4,9.77731]
[1744624342754,0.12094449,1636.6,1636.4,9.77732]
[1744624343184,0.12094449,1636.6,1636.4,4.88863]
[1744624343601,0.12094449,1636.6,1636.4,9.77731]
[1744624344400,11.12379919,1636.8,1636.4,9.77731]
[1744624344568,0.12142324,1636.7,1636.4,9.77731]
[1744624345500,0.12142324,1636.7,1636.5,4.88842]
[1744624345867,5.00935324,1636.7,1636.4,4.88863]
[1744624346295,5.00935324,1636.7,1636.4,9.77732]
[1744624347309,0.12142324,1636.7,1636.6,4.88818]
[1744624348266,0.12142324,1636.7,1636.6,4.94927609]
[1744624348695,1.12296053,1637.0,1636.7,4.88774]
[1744624348901,6.00995053,1637.0,1636.7,9.77551]
[1744624349570,6.00995053,1637.0,1636.7,9.77552]
[1744624350165,0.31876053,1637.0,1636.9,8.02084293]
[1744624350365,0.55,1637.2,1637.0,4.88687]
[1744624350570,0.55,1637.2,1637.1,4.88668]
[1744624351201,0.55,1637.2,1637.0,9.77375]
[1744624351992,0.55,1637.2,1637.1,4.88668]
[1744624353707,1e-05,1637.4,1637.3,4.88609]
[1744624353893,0.7872,1638.2,1638.0,4.884]
[1744624354069,5.67069,1638.2,1637.7,9.26356293]
[1744624354275,0.78,1638.0,1637.7,4.88475]
[1744624354507,0.78,1638.0,1637.7,9.76951]
[1744624354696,0.78,1638.0,1637.7,4.88475]
[1744624354897,0.78,1637.9,1637.5,4.88531]
[1744624355106,5.66439,1637.9,1637.5,4.88531]
[1744624355275,5.66439,1637.9,1637.6,4.88507]
[1744624355900,5.66439,1637.9,1637.6,9.77017]
[1744624356106,6.77991133,1637.9,1637.6,4.88507]
[1744624356418,6.77991133,1637.9,1637.5,9.77073]
[1744624356420,6.78009133,1637.9,1637.5,9.77073]
[1744624357227,0.7556,1637.7,1637.4,4.88569]
[1744624357579,0.7556,1637.7,1637.5,4.88521]
[1744624357794,0.7556,1637.7,1637.5,9.77048]
[1744624358111,0.7556,1637.7,1637.5,4.88521]
[1744624358611,3.7582,1637.9,1637.6,4.88519]
[1744624358809,8.64251,1637.9,1637.6,4.88519]
[1744624359105,8.64251,1637.9,1637.6,4.88505]
[1744624359106,3.7582,1637.9,1637.6,4.88505]
[1744624359807,3.7582,1637.9,1637.6,9.77011]
[1744624359998,3.7582,1637.9,1637.7,4.88475]
[1744624360195,3.7582,1637.9,1637.7,9.76956]
[1744624360379,1.1782932,1638.1,1637.8,9.76906]
[1744624361010,1.1782932,1638.1,1637.9,4.88428]
[1744624361179,0.4040932,1638.1,1637.9,9.76846]
[1744624361379,0.4040932,1638.1,1638.0,4.884]
[1744624362788,0.05,1638.4,1638.3,5.71591]
[1744624363001,0.05,1638.4,1638.3,6.775828]
[1744624363319,0.05,1638.4,1638.3,6.83685823]
[1744624363522,0.05,1638.4,1638.3,6.775828]
[1744624363724,1e-05,1638.4,1638.3,7.325828]
[1744624363900,0.44,1638.7,1638.6,5.65791]
[1744624364105,0.44,1638.7,1638.6,16.52350293]
[1744624364315,0.44,1638.7,1638.6,15.97350293]
[1744624364628,1e-05,1638.7,1638.6,22.65706586]
[1744624364928,0.05,1639.4,1638.7,4.3248]
[1744624365095,0.4040932,1639.7,1639.5,4.87943]
[1744624365283,0.4040932,1639.7,1639.6,4.87923]
[1744624366332,0.4040932,1639.7,1639.6,5.60292507]
[1744624366605,0.4040932,1639.7,1639.6,6.47130437]
[1744624366806,0.4040932,1639.7,1639.6,5.86032507]
[1744624367118,0.4040932,1639.7,1639.6,5.13663]
[1744624368117,0.4040932,1639.7,1639.5,4.87943]
[1744624368539,0.4040932,1639.7,1639.6,4.94021298]
[1744624368706,0.4040932,1639.7,1639.6,5.66033]
[1744624368908,5.73e-06,1639.9,1639.8,4.87864]
[1744624369103,0.05,1640.4,1640.3,5.68455]
[1744624369706,0.05,1640.4,1640.3,4.87715]
[1744624369928,0.05,1640.4,1640.3,4.93810503]
[1744624370330,0.05,1640.4,1640.3,4.87715]
[1744624371229,0.05,1640.4,1640.3,4.93810532]
[1744624371409,0.05,1640.4,1640.3,4.87715]
[1744624372136,0.05,1640.4,1640.2,4.87733]
[1744624372525,0.05,1640.4,1640.2,4.93829017]
[1744624372844,0.12828195,1640.3,1640.2,4.93829017]
[1744624373036,0.05,1640.4,1640.3,4.87715]
[1744624373244,0.17875852,1640.4,1640.3,4.87715]
[1744624373446,0.17875852,1640.4,1640.2,4.93829017]
[1744624374021,0.17875852,1640.4,1640.0,0.7573]
[1744624374022,4.87715,1640.3,1640.0,4.87794]
[1744624374222,0.12780531,1640.2,1640.0,4.87794]
[1744624374423,5.00536531,1640.2,1639.9,6.123]
[1744624374654,9.88299531,1640.2,1639.9,6.123]
[1744624374952,5.00536531,1640.2,1639.9,4.87833]
[1744624375152,4.87847,1639.9,1639.5,9.75872]
[1744624375339,4.87847,1639.9,1639.5,4.87924]
[1744624375514,4.87847,1639.9,1639.4,0.7507]
[1744624375515,0.12055762,1639.8,1639.6,9.75822]
[1744624375714,0.12055762,1639.8,1639.6,4.87909]
[1744624375920,10.52984,1640.0,1639.6,4.87909]
[1744624376119,0.1235118,1639.7,1639.6,9.75821]
[1744624376320,0.7735,1640.0,1639.7,4.87869]
[1744624376653,6.216677,1640.0,1639.7,4.87869]
[1744624376851,6.216677,1640.0,1639.6,9.75828]
[1744624377051,6.216677,1640.0,1639.7,4.87888]
[1744624377248,5.65155,1640.0,1639.7,4.87888]
[1744624377642,4.8784,1639.9,1639.6,4.87908]
[1744624377847,5.65155,1640.0,1639.6,9.75819]
[1744624378039,10.52977,1640.0,1639.6,4.87908]
[1744624378258,4.87865,1639.8,1639.5,4.87945]
[1744624378558,4.87925,1639.6,1639.3,52.46505]
[1744624378766,6.382,1639.9,1639.7,4.87881]
[1744624378979,1.826477,1640.0,1639.7,4.87881]
[1744624379123,1.826477,1640.0,1639.7,4.87879]
[1744624379322,6.704567,1640.0,1639.7,4.87879]
[1744624379544,6.704567,1640.0,1639.7,4.87893]
[1744624380054,6.704567,1640.0,1639.6,4.87913]
[1744624380249,0.7735,1640.0,1639.5,4.87953]
[1744624380457,0.7735,1640.0,1639.7,4.87884]
[1744624380656,0.7735,1640.0,1639.7,4.87878]
[1744624380844,5.65155,1640.0,1639.7,4.87878]
[1744624381050,5.65155,1640.0,1639.6,9.75815]
[1744624381253,0.7735,1640.0,1639.8,4.87857]
[1744624381637,0.7955,1640.2,1639.9,4.87834]
[1744624382062,5.67299,1640.2,1639.8,4.87858]
[1744624382234,5.67299,1640.2,1639.8,9.75707]
[1744624383859,5.67299,1640.2,1639.9,4.93928371]
[1744624384062,0.7955,1640.2,1639.9,4.93922371]
[1744624384265,0.05,1640.4,1639.9,1.04275108]
[1744624384562,0.05,1640.4,1640.1,9.75538]
[1744624384864,0.05,1640.4,1640.1,4.87763]
[1744624385064,0.05,1640.4,1640.2,4.87744]
[1744624385251,0.05,1640.4,1640.3,6.7914505]
[1744624385451,0.05,1640.4,1640.3,6.730494]
[1744624385659,1e-05,1640.4,1640.3,9.79143226]
[1744624386044,1e-05,1640.4,1640.3,9.730494]
[1744624386246,1e-05,1640.4,1640.3,15.890494]
[1744624386458,1e-05,1640.4,1640.3,6.180494]
[1744624386964,0.12051549,1640.4,1640.3,5.75369559]
[1744624387262,0.12070083,1640.4,1640.3,5.75369776]
[1744624387484,1e-05,1640.4,1640.3,5.69275]
[1744624387682,1e-05,1640.4,1640.3,4.87715]
[1744624387840,0.12070083,1640.4,1640.3,4.87715]
[1744624388040,0.12070083,1640.4,1640.3,4.93810337]
[1744624389343,0.12070083,1640.4,1640.1,4.87765]
[1744624389767,5.66557,1640.4,1640.1,4.87765]
[1744624390065,0.12021413,1640.3,1640.1,4.87773]
[1744624390248,0.78861,1640.4,1640.2,0.06096062]
[1744624390449,0.12021413,1640.3,1640.1,4.8776]
[1744624390650,5.66547,1640.4,1640.1,4.8776]
[1744624390852,0.12021413,1640.3,1640.1,4.8776]
[1744624391045,0.78861,1640.4,1640.2,0.06096099]
[1744624391251,1e-05,1640.4,1640.3,4.87715]
[1744624393155,1e-05,1640.4,1640.3,4.9381028]
[1744624393571,1e-05,1640.4,1640.3,4.87715]
[1744624394388,1e-05,1640.4,1640.1,4.87772]
[1744624394691,1e-05,1640.4,1640.2,4.87735]
[1744624395566,1e-05,1640.4,1640.1,6.080192]
[1744624395773,5.66784,1640.3,1640.0,11.25802]
[1744624395982,5.66784,1640.3,1640.0,6.38]
[1744624396180,5.66784,1640.3,1639.9,4.87823]
[1744624396381,4.87834,1639.9,1639.8,2.49335389]
[1744624396587,5.63184,1639.9,1639.8,2.49335389]
[1744624397281,4.87889,1639.8,1639.4,11.25982]
[1744624397479,4.87889,1639.8,1639.4,12.949459]
[1744624397675,4.87903,1639.7,1639.4,12.949459]
[1744624397871,9.75812,1639.7,1639.4,12.949459]
[1744624398074,4.87933,1639.6,1639.2,4.88037]
[1744624398274,0.7811,1639.5,1639.2,4.88037]
[1744624398477,0.7811,1639.5,1639.2,4.88031]
[1744624398886,0.7811,1639.5,1639.3,4.88011]
[1744624399776,0.7811,1639.5,1639.3,4.87999]
[1744624400075,0.7811,1639.5,1639.3,10.25411856]
[1744624400277,0.7811,1639.5,1639.3,5.37408856]
[1744624402074,0.7811,1639.5,1639.3,0.49409856]
[1744624402277,0.7811,1639.5,1639.3,5.37413856]
[1744624402678,0.7811,1639.5,1639.3,10.25415856]
[1744624403611,5.66303,1639.7,1639.4,4.9408257]
[1744624403913,5.66303,1639.7,1639.4,4.87983]
[1744624404211,4.87949,1639.6,1639.3,0.49409856]
[1744624404413,4.87953,1639.5,1639.2,4.88037]
[1744624404711,9.75922,1639.5,1639.2,4.88037]
[1744624404913,4.87953,1639.5,1639.2,4.88037]
[1744624405108,4.87953,1639.5,1639.2,9.76069]
[1744624405414,4.87931,1639.6,1639.2,4.88032]
[1744624405612,4.87965,1639.5,1639.2,4.88032]
[1744624405819,9.75932,1639.5,1639.2,4.88032]
[1744624405983,4.87988,1639.4,1639.1,4.88066]
[1744624406185,4.87988,1639.4,1639.1,6.494821]
[1744624406408,9.75994,1639.4,1639.1,1.614161]
[1744624406612,4.87988,1639.4,1639.1,4.8807]
[1744624406914,9.7599,1639.4,1639.0,16.14182]
[1744624407113,0.7514,1639.3,1639.1,4.88071]
[1744624407410,0.7514,1639.3,1639.1,4.88062]
[1744624407825,5.63162,1639.3,1639.0,6.38]
[1744624408039,5.63162,1639.3,1639.0,6.007063]
[1744624408241,0.7514,1639.3,1639.1,4.8807]
[1744624408382,0.8062,1639.5,1639.2,4.88042]
[1744624408595,5.6858,1639.5,1639.1,4.88066]
[1744624408795,4.87992,1639.4,1639.1,4.88068]
[1744624409027,4.87992,1639.4,1639.1,10.818244]
[1744624409240,5.68576,1639.5,1639.2,4.88042]
[1744624409450,0.7775,1639.7,1639.2,4.88042]
[1744624409628,0.7775,1639.7,1639.4,9.75924]
[1744624409800,0.7775,1639.7,1639.5,4.87951]
[1744624409996,0.7775,1639.7,1639.5,9.75893]
[1744624410201,5.70481,1639.9,1639.5,4.87942]
[1744624410397,4.87866,1639.8,1639.5,4.87942]
[1744624410593,9.75745,1639.8,1639.4,6.635034]
[1744624410800,4.87906,1639.7,1639.4,5.855734]
[1744624411129,4.87906,1639.7,1639.4,10.735444]
[1744624411303,4.87867,1639.8,1639.5,5.9530644]
[1744624411500,9.75745,1639.8,1639.5,1.0735444]
[1744624411701,9.75745,1639.8,1639.4,9.7594]
[1744624411901,9.75745,1639.8,1639.4,4.8797]
[1744624412111,4.87902,1639.7,1639.4,4.8797]
[1744624412311,4.87902,1639.7,1639.3,4.88006]
[1744624412312,5.64844,1639.5,1639.2,4.88034]
[1744624412507,0.7689,1639.5,1639.3,4.88005]
[1744624412712,0.7689,1639.5,1639.3,5.856066]
[1744624412912,0.7689,1639.5,1639.3,10.736096]
[1744624413333,0.7689,1639.5,1639.3,5.856066]
[1744624413527,5.64847,1639.5,1639.2,4.88039]
[1744624413732,0.7689,1639.5,1639.2,9.82168623]
[1744624414704,0.7689,1639.5,1639.2,9.76069]
[1744624415532,5.64844,1639.5,1639.2,4.8803]
[1744624415731,5.64844,1639.5,1639.2,9.76061]
[1744624415933,6.20175088,1640.0,1639.2,9.76061]
[1744624415934,5.64363,1640.0,1639.6,4.87915]
[1744624416228,4.87874,1639.8,1639.5,4.87946]
[1744624416922,9.75753,1639.8,1639.5,4.87946]
[1744624417812,4.87927,1639.6,1639.3,4.88005]
[1744624418205,4.87927,1639.6,1639.2,4.88035]
[1744624418408,4.87969,1639.5,1639.2,9.76066]
[1744624418613,4.87928,1639.6,1639.3,4.8801]
[1744624419434,9.75867,1639.6,1639.3,4.8801]
[1744624419638,4.87957,1639.5,1639.2,9.76062]
[1744624419842,4.87928,1639.6,1639.3,4.88012]
[1744624420509,5.445438,1639.6,1639.3,4.88012]
[1744624421158,10.324798,1639.6,1639.3,4.88012]
[1744624421355,4.87928,1639.6,1639.3,4.88012]
[1744624421911,0.7823,1639.7,1639.2,4.88039]
[1744624422207,9.75858,1639.6,1639.2,9.82169643]
[1744624422607,9.75858,1639.6,1639.2,9.82169706]
[1744624422854,4.87923,1639.6,1639.3,4.88007]
[1744624423234,9.75862,1639.6,1639.2,9.76062]
[1744624423548,4.87955,1639.5,1639.2,4.88031]
[1744624425057,4.87955,1639.5,1639.2,9.76062]
[1744624425352,4.88025,1639.3,1639.0,11.24198]
[1744624425514,10.56638,1639.3,1639.0,4.88098]
[1744624426147,4.88045,1639.2,1638.9,0.7667]
[1744624426315,4.88081,1639.1,1638.8,9.76306]
[1744624426650,3.0,1639.2,1638.7,12.07192]
[1744624426826,4.88099,1639.1,1638.7,12.07192]
[1744624427029,4.88136,1638.9,1638.7,6.361]
[1744624427239,9.76219,1639.0,1638.7,6.361]
[1744624427447,4.88133,1638.9,1638.7,6.361]
[1744624427755,5.67113,1638.9,1638.6,12.25914522]
[1744624427908,5.67113,1638.9,1638.6,18.31957974]
[1744624428642,5.67113,1638.9,1638.6,13.43744974]
[1744624428839,0.7898,1638.9,1638.7,4.8819]
[1744624430408,5.63395,1639.1,1638.7,4.88179]
[1744624430615,0.7532,1639.1,1638.8,4.88136]
[1744624430909,10.51502,1639.1,1638.8,0.488136]
[1744624431137,10.51496,1639.1,1638.7,4.88182]
[1744624431662,9.76229,1639.0,1638.6,18.31962974]
[1744624432885,5.63398,1639.1,1638.7,4.88162]
[1744624433388,4.88113,1639.0,1638.7,4.88162]
[1744624433686,9.76238,1639.0,1638.6,18.31962974]
[1744624433838,9.76238,1639.0,1638.6,12.25919522]
[1744624434037,4.88137,1638.9,1638.6,2.49491522]
[1744624434238,4.88173,1638.8,1638.6,2.49491522]
[1744624434889,9.76294,1638.9,1638.6,2.49491522]
[1744624435054,4.88164,1638.8,1638.6,2.49491522]
[1744624435489,4.88137,1638.9,1638.6,7.37708522]
[1744624435790,4.88109,1639.0,1638.7,4.88189]
[1744624435990,9.76224,1639.0,1638.7,4.88189]
[1744624436189,9.76223,1639.0,1638.7,4.88189]
[1744624436385,4.88109,1639.0,1638.7,9.76378]
[1744624436690,4.88109,1639.0,1638.7,4.88189]
[1744624436847,10.51489,1639.1,1638.7,10.63185727]
[1744624437046,4.88102,1639.0,1638.7,5.74996727]
[1744624437318,5.634,1639.1,1638.7,5.74996727]
[1744624437592,9.76228,1639.0,1638.7,0.86814727]
[1744624438151,4.88136,1638.9,1638.6,7.37707522]
[1744624438453,9.7628,1638.9,1638.6,7.37707522]
[1744624438673,4.88172,1638.8,1638.6,2.49491522]
[1744624438872,5.68592,1638.8,1638.6,2.49491522]
[1744624440164,4.88137,1638.9,1638.6,2.49491522]
[1744624440359,4.88137,1638.9,1638.6,7.37704522]
[1744624440595,9.7629,1638.9,1638.6,7.37704522]
[1744624440796,4.88137,1638.9,1638.6,2.49491522]
[1744624440974,9.76293,1638.9,1638.6,2.49491522]
[1744624441387,5.6405,1639.0,1638.7,4.88175]
[1744624441693,0.7594,1639.0,1638.7,9.76357]
[1744624441871,5.64049,1639.0,1638.7,4.88175]
[1744624442608,0.7594,1639.0,1638.6,9.39299874]
[1744624442780,4.88085,1639.1,1638.8,4.88162]
[1744624442977,9.76174,1639.1,1638.8,4.88162]
[1744624443184,9.76169,1639.1,1638.8,4.88162]
[1744624443932,4.88112,1639.0,1638.7,4.88181]
[1744624444091,9.7617,1639.1,1638.7,6.30928587]
[1744624444287,9.7617,1639.1,1638.7,11.19110587]
[1744624444487,4.8808,1639.1,1638.8,9.76315]
[1744624444686,9.76164,1639.1,1638.8,4.88153]
[1744624444914,4.8808,1639.1,1638.8,4.88153]
[1744624445421,0.7685,1639.4,1639.2,4.88027]